Cogmind - Beta 16 @@@ ROGUE MODE // 2025.10.31 @ 20:55:55 Player: winnking222 Result: Destroyed by G-34 Mercenary with Small Laser Performance ------------- Evolutions (0) 0 Regions Visited (2) 400 Robots Destroyed (27) 135 Value Destroyed (708) 708 Prototype IDs (2) 40 Alien Tech Used (0) 0 Bonus (0) 0 TOTAL SCORE: 1283 Bonus ------- None Cogmind --------- Core Integrity 0/250 Matter 300/300 Energy 160/160 System Corruption 1% Temperature Cool (6) Movement Treading (240) Ox1 Location -10/Mines Parts ------- > --- POWER (1) -------- Light Nuclear Core > --- PROPULSION (2) --- Light Treads > --- UTILITY (2) ------ Large Storage Unit Seismic Detector > --- WEAPON (2) ------- Mace Mace > --- INVENTORY (15) --- Wheel Improved Heat Sink Cooling System Cooling System EM Shotgun EM Shotgun Particle Gun Particle Gun Particle Gun Particle Gun Grenade Launcher Peak State ------------ > --- POWER ------------ Light Nuclear Core > --- PROPULSION ------- Light Treads Light Treads > --- UTILITY ---------- Large Storage Unit Seismic Detector > --- WEAPON ----------- Mace Mace > --- INVENTORY -------- Improved Heat Sink Cooling System Cooling System EM Shotgun EM Shotgun Particle Gun Particle Gun Particle Gun Particle Gun Grenade Launcher [Rating: 13] Favorites ----------- Power Light Nuclear Core Engine Light Ion Engine Power Core Light Nuclear Core Propulsion Light Treads Treads Light Treads Leg Aluminum Leg Utility Small Storage Unit Device Seismic Detector Storage Small Storage Unit Weapon Mace Energy Gun EM Pulse Gun Ballistic Gun Light Assault Rifle Launcher Grenade Launcher Impact Weapon Mace Build | -11 -10 -10 ------- Run | Yrd Mat Min Slots Evolved . | . . . Power . | . . . Propulsion . | . . . Utility . | . . . Weapon . | . . . Parts Attached 21 | 7 12 2 Power 3 | 1 2 . Engine 2 | 1 1 . Core 1 | . 1 . Reactor . | . . . Propulsion 5 | 2 2 1 Treads 3 | . 2 1 Leg 2 | 2 . . Wheel . | . . . Hover . | . . . Flight . | . . . Utility 4 | 2 1 1 Device 2 | 1 . 1 Storage 2 | 1 1 . Processor . | . . . Hackware . | . . . Protection . | . . . Artifact . | . . . Weapon 9 | 2 7 . Energy Gun 5 | 2 3 . Energy Cannon . | . . . Ballistic Gun 1 | . 1 . Ballistic Cannon . | . . . Launcher 1 | . 1 . Special Weapon . | . . . Impact Weapon 2 | . 2 . Slashing Weapon . | . . . Piercing Weapon . | . . . Special Melee Weapon . | . . . Unidentified Prototypes . | . . . Parts Lost 5 | . 3 2 Power 2 | . 2 . Propulsion 2 | . . 2 Utility . | . . . Weapon 1 | . 1 . Highest Loss Streak 1 | . 1 1 To Critical Strikes . | . . . Average Backups 7 | 5 6 11 Power . | 1 . . Propulsion 1 | 3 1 . Utility 2 | . 2 3 Weapon 3 | . 2 7 Tool/Special . | . . . Unused Backups 12 | . 2 10 Power . | . . . Propulsion 3 | . 2 1 Utility 3 | . . 3 Weapon 6 | . . 6 Tool/Special . | . . . Average Slot Usage (%) 90 | . 90 90 Engine 6 | . 8 . Core 7 | . 5 14 Treads 19 | . 16 26 Leg 8 | . 10 . Device 5 | . 5 6 Storage 14 | . 14 14 Energy Gun 7 | . 9 . Ballistic Gun 1 | . 1 . Impact Weapon 19 | . 16 28 Peak Build Rating 13 | 7 12 13 Average Rating 9 | 5 9 12 On Entrance 6 | . 7 12 Avg Prop Armor Cover (%) . | . . . Naked Turns . | . . . Heaviest Build 30 | 13 29 30 Greatest Support 40 | 20 40 40 Greatest Overweight (x) 1 | 1 . 1 Average Overweight (x) . | . . . Largest Inventory Capacity 15 | 8 15 15 Average Capacity 11 | 7 10 15 Most Carried 12 | 7 12 12 Average Carried 7 | 5 6 11 Final Capacity 15 | 8 15 15 Final Carried 12 | 7 12 11 Class Distribution -------------------- 100% | Mutant Dominant Class ---------------- Mutant | -10/Materials Mutant | -10/Mines Resources | -11 -10 -10 ----------- Run | Yrd Mat Min Matter Collected 440 | 270 150 20 Remotely . | . . . Salvage Created 983 | 154 722 107 Parts 44 | 11 33 . Haulers Intercepted 2 | . 2 . Recyclers Shooed . | . . . Parts Field Recycled . | . . . Retrieved Matter . | . . . Parts Self-Destructed . | . . . Prevented . | . . . Parts Restored . | . . . Kills | -11 -10 -10 ------- Run | Yrd Mat Min Combat Hostiles Destroyed 16 | . 13 3 Melee 3 | . 2 1 Guns 6 | . 6 . AOE 3 | . 3 . Classes Destroyed 7 | 2 5 . Worker 1 | . 1 . Tunneler 3 | 3 . . Hauler 2 | . 2 . Recycler 2 | 1 1 . Operator 2 | . 2 . Watcher 1 | . 1 . Grunt 16 | . 13 3 Best Kill Streak 5 | 4 5 2 Combat Bots Only 3 | . 3 2 Max Kills in Single Turn 2 | 1 2 1 Gunslinging . | . . . Exploded 2 | . 2 . Melee 1 | . 1 1 Uniques/NPCs Destroyed . | . . . Combat | -11 -10 -10 -------- Run | Yrd Mat Min Hostile Shots Fired 96 | . 58 38 Missed 22 | . 14 8 Hits 74 | . 44 30 Projectile 74 | . 44 30 Critical Strikes 1 | . 1 . Damage Taken 1048 | 32 621 395 Core 254 | . 147 107 Absorbed by Shields . | . . . Core Remaining (%) 100 | 100 . . Volleys Fired 49 | 13 36 . Largest 2 | 2 2 . Hottest 115 | 80 115 . Shots Fired 96 | 26 70 . Gun 94 | 26 68 . Cannon . | . . . Launcher 2 | . 2 . Special . | . . . Kinetic 15 | . 15 . Thermal 47 | . 47 . Explosive 2 | . 2 . Electromagnetic 32 | 26 6 . Robot Hit Streak 8 | 3 8 . Robot Miss Streak 5 | 2 5 . Penetration Max . | . . . Secondary Targets . | . . . Shots Hit Robots 81 | 14 55 12 Core Hits 31 | 5 25 1 Critical Kills 2 | . 1 1 Critical Parts Destroyed 4 | . 3 1 Critical Strikes 8 | . 6 2 Burn 1 | . 1 . Destroy 1 | . 1 . Corrupt 1 | . 1 . Smash 5 | . 3 2 Melee Attacks 39 | . 22 17 Impact 39 | . 22 17 Slashing . | . . . Piercing . | . . . Sneak Attacks 7 | . 7 . Combat Hostiles 1 | . 1 . Follow-up Attacks 5 | . 2 3 Damage Inflicted 2052 | 249 1393 410 Guns 697 | 206 491 . Cannons . | . . . Explosions 195 | 43 152 . Melee 1160 | . 750 410 Ramming . | . . . Kinetic 80 | . 80 . Thermal 427 | 43 384 . Explosive 152 | . 152 . Electromagnetic 233 | 206 27 . Impact 1160 | . 750 410 Slashing . | . . . Piercing . | . . . Highest Corruption 1 | . 1 1 Average Corruption 1 | . 1 1 Corruption Purged . | . . . Corruption Blocked . | . . . Effects 4 | . 2 2 Message Errors 2 | . 1 1 Energy Discharges 2 | . 1 1 Overload Shots . | . . . Overflow Damage 309 | . 236 73 Projectiles . | . . . Explosions . | . . . Melee 309 | . 236 73 Knockbacks 7 | . 3 4 Impact 7 | . 3 4 Kinetic . | . . . Secondary . | . . . Self-Inflicted Damage 32 | 32 . . Shots 1 | 1 . . Rammed . | . . . Targets Rammed 1 | . 1 . Kicked 1 | . 1 . Crushed . | . . . Highest Temperature 490 | 144 490 . Average Temperature 127 | 57 148 . Received Heat Transfer 558 | . 339 219 Effects 8 | . 8 . Shutdowns 2 | . 2 . Energy Bleed 1 | . 1 . Short Circuit 5 | . 5 . Siege Activations . | . . . Martial Activations . | . . . Shielding Activations . | . . . Robots Disrupted . | . . . Combat Hostiles . | . . . Robots Corrupted 8 | . 6 2 Combat Hostiles 4 | . 2 2 Parts Fried 10 | 3 4 3 Impact Corruptions 13 | . 10 3 Robots Melted . | . . . Combat Hostiles . | . . . Parts Melted . | . . . Heat Transferred 1123 | 50 1073 . Parts Sabotaged . | . . . Parts Stolen . | . . . Parts Stripped . | . . . Power Chain Reactions 1 | 1 . . Alert | -11 -10 -10 ------- Run | Yrd Mat Min Maximum Alert Level . | . . . Low Security (%) 100 | 100 100 100 Level 1 . | . . . Level 2 . | . . . Level 3 . | . . . Level 4 . | . . . Level 5 . | . . . High Security . | . . . Max Security . | . . . Peak Influence 162 | 10 162 30 Initial 19 | . . 19 Average 59 | 1 80 7 Influence Increases 564 | 20 464 80 Destroy 0b10 Robot/C 320 | . 260 60 Destroy 0b10 Robot/NC 55 | 20 35 . Destroy Leader 86 | . 66 20 Successful Hack 19 | . 19 . Destroy Structure 9 | . 9 . Lose Combat Pursuer 75 | . 75 . Influence Decreases 554 | 20 414 120 Entered New Map 31 | . . 31 Time Decay 483 | 20 394 69 Lost Part 40 | . 20 20 Squads Dispatched 3 | . 3 . Investigation . | . . . Extermination . | . . . Reinforcement 3 | . 3 . Assault . | . . . Garrison . | . . . Intercept . | . . . Searches Triggered . | . . . Construction Impeded . | . . . Haulers Reinforced . | . . . Active Scanning Responses . | . . . Cargo Convoy Interrupts . | . . . Stealth | -11 -10 -10 --------- Run | Yrd Mat Min Distress Signals 2 | . 2 . Communications Jammed . | . . . Distress Signals . | . . . Times Spotted 30 | . 26 4 Peak Tracking Total 4 | . 4 2 Tactical Retreats 2 | . 2 . Traps | -11 -10 -10 ------- Run | Yrd Mat Min Traps Triggered 2 | . 2 . Indirectly . | . . . Trap Hack Attempts . | . . . Triggered . | . . . Disarmed . | . . . Reprogrammed . | . . . Reused . | . . . Traps Extracted . | . . . Installed . | . . . Triggered . | . . . Machines | -11 -10 -10 ---------- Run | Yrd Mat Min Machines Disabled . | . . . Max in Single Turn . | . . . Machines Repaired . | . . . Machines Dismantled . | . . . Machines Sabotaged . | . . . Overloaded Fab Kills . | . . . Hacking | -11 -10 -10 --------- Run | Yrd Mat Min Machines Accessed 6 | . 6 . Terminals 6 | . 6 . Fabricators . | . . . Repair Stations . | . . . Recycling Units . | . . . Scanalyzers . | . . . Garrison Access . | . . . Total Hacks 17 | . 17 . Successful 12 | . 12 . Failed 5 | . 5 . Catastrophic . | . . . Database Lockouts . | . . . Manual 13 | . 13 . Terminals 17 | . 17 . Fabricators . | . . . Repair Stations . | . . . Recycling Units . | . . . Scanalyzers . | . . . Garrison Access . | . . . Terminal Hacks 2 | . 2 . Prototype ID Bank 1 | . 1 . Hauler Manifests 1 | . 1 . Fabricator Hacks . | . . . Repair Station Hacks . | . . . Recycling Unit Hacks . | . . . Scanalyzer . | . . . Garrison Access Hacks . | . . . Unauthorized Hacks 10 | . 10 . Terminals 10 | . 10 . Track 1 | . 1 . Botnet 4 | . 4 . Skim 5 | . 5 . Fabricators . | . . . Repair Stations . | . . . Recycling Units . | . . . Scanalyzers . | . . . Garrison Access . | . . . Data Cores Recovered . | . . . Used . | . . . Hacking Detections 2 | . 2 . Full Trace Events 1 | . 1 . Feedback Events . | . . . Feedback Blocked . | . . . Robot Schematics Acquired . | . . . Robots Built . | . . . Authchips . | . . . Time . | . . . Total Robot Build Rating . | . . . Part Schematics Acquired . | . . . Parts Built . | . . . Authchips . | . . . Time . | . . . Total Part Build Rating . | . . . Part Studies Acquired . | . . . Parts Repaired . | . . . Time . | . . . Parts Recycled . | . . . Recycled Matter . | . . . Retrieved Matter . | . . . Retrieved Components . | . . . Parts Scanalyzed . | . . . Part Schematics Acquired . | . . . Parts Damaged . | . . . Bothacking | -11 -10 -10 ------------ Run | Yrd Mat Min Used RIF Installer . | . . . Robots Hacked . | . . . Non-combat . | . . . Combat . | . . . Robot Hacks Applied . | . . . Relay Couplers Released . | . . . Fabnet Peak Effective % . | . . . Robots Rewired . | . . . Allies Hacked . | . . . Hacks Repelled . | . . . Allies | -11 -10 -10 -------- Run | Yrd Mat Min Total Allies . | . . . Largest Group . | . . . Highest-Rated Group . | . . . Highest-Rated Ally . | . . . Total Orders . | . . . Ally Attacks . | . . . Total Damage . | . . . Kills . | . . . Allies Corrupted . | . . . Allies Melted . | . . . Intel | -11 -10 -10 ------- Run | Yrd Mat Min Active Infowar (turns) 538 | 36 363 139 Seismic 538 | 36 363 139 Robot Analysis Total . | . . . Derelict Logs Recovered 1 | . . 1 Drone Launches . | . . . Drone Recoveries . | . . . Exploration | -11 -10 -10 ------------- Run | Yrd Mat Min Turns Passed 1499 | 115 1079 305 Spaces Moved 785 | 55 572 158 Core 12 | 12 . . Treads 528 | . 370 158 Legs 245 | 43 202 . Wheels . | . . . Hover . | . . . Flight . | . . . Fastest Speed 50 | 50 120 160 Average Speed 146 | 105 145 162 Slowest Speed 240 | 120 160 240 Overloaded Moves . | . . . Propulsion Burnouts . | . . . Robots Hopped . | . . . Potential Cave-ins . | . . . Cave-ins Triggered . | . . . Exploration Rate (%) 50 | 4 95 52 Regions Visited 2 Branch Regions 1 Pre-discovered Areas 1 | . . 1 Known Exits Taken . | . . . Unknown Exits Taken 2 | 1 1 . Scrap Searched 1 | . . 1 Spaces Dug . | . . . Terrain Destroyed 14 | 2 12 . Melee . | . . . Projectile . | . . . AOE 14 | 2 12 . Terrain Rammed . | . . . Walls Destroyed . | . . . Machines Disabled . | . . . Actions | -11 -10 -10 --------- Run | Yrd Mat Min Total 988 | 83 722 183 Wait 67 | . 58 9 Move 783 | 54 571 158 Hop . | . . . Pick Up 26 | 9 16 1 Fast Attach 6 | 5 1 . Attach 12 | 2 8 2 Detach . | . . . Swap 3 | . 3 . Drop 11 | . 11 . Fire 49 | 13 36 . Melee 30 | . 17 13 Ram . | . . . Kick 1 | . 1 . Crush . | . . . Escape Stasis . | . . . Rewire . | . . . Trap . | . . . Miscellaneous . | . . . Route ------- -11/Scrapyard -10/Materials (discovered 4 exits: [*Mat x3] / [*Min]) -10/Mines (discovered 1 exit: [*Mat]) History --------- Turn | Location | Event 9 | -11/Scrapyard | Discovered new exit (range 15) 116 | -11/Scrapyard | Entered Materials 321 | -10/Materials | Build established: Mutant 580 | -10/Materials | Discovered new exit (range 14) 737 | -10/Materials | Discovered new exit (range 15) 766 | -10/Materials | Core integrity fell below 50% 945 | -10/Materials | Discovered new exit (range 7) 1079 | -10/Materials | Discovered new exit (range 8) 1195 | -10/Materials | Entered Mines 1196 | -10/Mines | Learned location of Storage (-9) 1341 | -10/Mines | Core integrity fell below 20% 1415 | -10/Mines | Discovered new exit (range 10) 1423 | -10/Mines | Found a hidden stash of uninstalled traps 1436 | -10/Mines | Learned 8 Materials zone layouts 1500 | -10/Mines | Destroyed by G-34 Mercenary with Small Laser Last Messages --------------- 01357_ Sml. Laser fried. 01362_ Acquired 20 matter. 01379_ K-01 Serf collects debris. 01398_ Searching scrap... 01398_ Found Wheel. 01398_ Found Lrg. Matter Pod. 01398_ Found EM Pulse Gun. 01398_ Found 46 Matter. 01402_ Acquired Wheel. 01415_ EXIT=FOUND 01423_ A stash of uninstalled traps is collected here! 01436_ Acquired derelict log, extracted data. Data stored: Materials zone layouts (x8). 01493_ G-47 Trooper suffers critical hit (Smash). 01493_ Destroyed Imp. Heat Sink. 01493_ G-47 Trooper system corrupted by crushing effect. 01494_ G-47 Trooper system terminally corrupted. 01494_ Particle Gun fried. 01494_ Aluminum Leg fried. 01495_ Lgt. Treads destroyed. Map ----- +----------------------------------------------------+ | ??????????## ##???##????????????? | | ???????????####[#### ##???????????? | | ??????????????#% #???????????? | | ??????????????#! #???????????? | | ?????###??????# ### #??????????? | | ??#? #?????# #??? ???????? | | ??# #?????# #????? #?????? | | ??# """ #?????# #?????? ##??????? | | ??# """ #?????# #???????? #???????? | | ??# """ #?????# ###???????????????? | | ??# #???### ##??????????????? | | ??# < ##### ##?????????????? | | ??# #?????????????? | | ??# #?????????????? | | ??# #### ###???????????? | | ??#######?## #???????????? | | ??????????# & #???????????? | | ??????????# & #### #???????????? | | ??????????# & ##??? #???????????? | | ?????????## #????? ???????????? | | ?????????# ##??????#??????????? | | ?????????# ##??????????????????? | | ??##?????# ##???????????????????? | | ?## ????# ##????????????????????? | | ?# #???#g #?????????????????????? | | ?# #?## @ #?????????????????????? | | ?# ## #?????????????????????? | | ?# #?????????????????????? | | ??# ## %#?????????????????????? | | ??######### #?????????????????????? | | ??????????# #?????????????????????? | | ??????????# #?????????????????????? | | ??????????# #?????????????????????? | | ??????????# #?????????????????????? | | ??????????# #?????????????????????? | | ?????????? ?????????????????????? | | ?????????? ?????????????????????? | | ?????????? ?????????????????????? | | ??????????""" ????????????????????? | | ??????????""" ????????????????????? | | ????????????? ????????????????????? | | ????????????? ????????????????????? | | ???????????????????????????????????? | | ???????????????????????????????????? | | ???????????????????????????????????? | | ???????????????????????????????????? | | ???????????????????????????????????? | | ???????????????????????????????????? | | | | | +----------------------------------------------------+ Best States ------------- Heat Dissipation 25 Energy Generation 14 Energy Capacity 160 Matter Stores 300 Matter Capacity 300 Sight Range 16 Terrain Scan Density 10 Evasion (%) 55 Recoil Reduction 2 Item Schematics ----------------- None Robot Schematics ------------------ None Fabricated ------------ Nothing Repaired ---------- Nothing Studied --------- None Alien Tech Used ----------------- None Achievements -------------- Overwhelming Challenges ------------ None Game ------ Seed ActuatorCentriumMatterbank Manual? 0 Play Time 00:09:48 Cumulative 198.9 hours Start 2025.10.31 @ 20:47:16 End 2025.10.31 @ 20:55:55 Sessions 1 Manual Loads 0 Difficulty Rogue Special Mode None Game No. 275 Rogue 275 Adventurer 0 Explorer 0 Win Type - Total 3 Types 2/0/0/1/0/0/0/0/0/0 Lore% 73 Gallery% 72 Achievement% 36 Wizard Run 0 Options --------- Layout 0 ASCII 0 Keyboard 0 Movement Mouse Keybinds 0 Fullscreen 1 Font 16/SmallcapsGlow Map View 75x55 Zoom Use 0% Tactical HUD 1 Map Filters NONE Filters NONE Steam 1 RUN: 6758adc0-272c-4850-a4af-5307d1e3e838